lending/lending_fUSD_20250114
["ID","MTS","AMOUNT","RATE_DAILY","PERIOD"]
[348872747,1736839846398,-309.17116122,9.997e-05,2]
[348872748,1736839846410,-185.23577559,9.997e-05,2]
[348872749,1736839846420,-500.0,9.997e-05,2]
[348872750,1736839846430,-153.13093449,9.999e-05,2]
[348872751,1736839846592,-330.49842,9.999e-05,2]
[348872752,1736839846609,-16.37064551,9.999e-05,2]
[348872753,1736839846619,-461.37935449,0.0001,2]
[348872754,1736839846630,-254.15585908,0.0001,2]
[348872760,1736840025671,151.01416,0.0002,120]
[348872761,1736840382094,956.31,8.219e-05,2]
[348872766,1736840681702,319.0,0.00023,120]
[348872768,1736840765698,-1842.54,8.993e-05,2]
[348872769,1736840765731,-1000.0,8.998e-05,2]
[348872770,1736840765757,-250.0,8.998e-05,2]
[348872771,1736840765785,-261.96,9e-05,2]
[348872772,1736840765811,-604.61255545,9e-05,2]
[348872773,1736840765836,-154.622523,9e-05,2]
[348872774,1736840765861,-178.0,9.001e-05,2]
[348872775,1736840765886,-604.61255545,9.01e-05,2]
[348872776,1736840765911,-154.622523,9.01e-05,2]
[348872777,1736840765936,-604.61255545,9.02e-05,2]
[348872778,1736840765961,-154.622523,9.02e-05,2]
[348872779,1736840765988,-604.61255545,9.03e-05,2]
[348872780,1736840766014,-154.622523,9.03e-05,2]
[348872781,1736840766040,-300.0,9.038e-05,2]
[348872782,1736840766067,-2159.58,9.039e-05,2]
[348872783,1736840766091,-604.61255545,9.04e-05,2]
[348872784,1736840766117,-154.622523,9.04e-05,2]
[348872785,1736840766142,-604.61255545,9.051e-05,2]
[348872786,1736840766167,-154.622523,9.051e-05,2]
[348872787,1736840766196,-604.61255545,9.061e-05,2]
[348872788,1736840766222,-154.622523,9.061e-05,2]
[348872789,1736840766248,-604.61255545,9.071e-05,2]
[348872790,1736840766274,-154.622523,9.071e-05,2]
[348872791,1736840766299,-604.61255545,9.081e-05,2]
[348872792,1736840766324,-154.622523,9.081e-05,2]
[348872793,1736840766348,-604.61255545,9.091e-05,2]
[348872794,1736840766374,-154.622523,9.091e-05,2]
[348872795,1736840766400,-604.61255545,9.101e-05,2]
[348872796,1736840766426,-154.622523,9.101e-05,2]
[348872797,1736840766451,-604.61255545,9.111e-05,2]
[348872798,1736840766475,-154.622523,9.111e-05,2]
[348872799,1736840766502,-604.61255545,9.121e-05,2]
[348872800,1736840766527,-154.622523,9.121e-05,2]
[348872801,1736840766552,-604.61255545,9.131e-05,2]
[348872802,1736840766588,-154.622523,9.131e-05,2]
[348872803,1736840766619,-604.61255545,9.141e-05,2]
[348872804,1736840766646,-154.622523,9.141e-05,2]
[348872805,1736840766672,-604.61255545,9.152e-05,2]
[348872806,1736840766698,-154.622523,9.152e-05,2]
[348872807,1736840766725,-604.61255545,9.162e-05,2]
[348872808,1736840766752,-154.622523,9.162e-05,2]
[348872809,1736840766778,-604.61255545,9.172e-05,2]
[348872810,1736840766804,-154.622523,9.172e-05,2]
[348872811,1736840766830,-604.61255545,9.182e-05,2]
[348872812,1736840766856,-154.622523,9.182e-05,2]
[348872813,1736840766882,-604.61255545,9.192e-05,2]
[348872814,1736840766908,-154.622523,9.192e-05,2]
[348872815,1736840766935,-604.61255545,9.202e-05,2]
[348872816,1736840766960,-154.622523,9.202e-05,2]
[348872817,1736840766989,-604.61255545,9.212e-05,2]
[348872818,1736840767015,-154.622523,9.212e-05,2]
[348872819,1736840767043,-604.61255545,9.222e-05,2]
[348872820,1736840767073,-154.622523,9.222e-05,2]
[348872821,1736840767099,-604.61255545,9.232e-05,2]
[348872822,1736840767125,-154.622523,9.232e-05,2]
[348872823,1736840767152,-604.61255545,9.242e-05,2]
[348872824,1736840767451,-154.622523,9.242e-05,2]
[348872825,1736840767481,-604.61255545,9.253e-05,2]
[348872826,1736840767509,-154.622523,9.253e-05,2]
[348872827,1736840767535,-604.61255545,9.263e-05,2]
[348872828,1736840767563,-154.622523,9.263e-05,2]
[348872829,1736840767592,-604.61255545,9.273e-05,2]
[348872830,1736840767619,-154.622523,9.273e-05,2]
[348872831,1736840767646,-604.61255545,9.283e-05,2]
[348872832,1736840767678,-154.622523,9.283e-05,2]
[348872833,1736840767704,-604.61255545,9.293e-05,2]
[348872834,1736840767731,-154.622523,9.293e-05,2]
[348872835,1736840767759,-604.61255545,9.303e-05,2]
[348872836,1736840767786,-154.622523,9.303e-05,2]
[348872837,1736840767814,-604.61255545,9.313e-05,2]
[348872838,1736840767841,-154.622523,9.313e-05,2]
[348872839,1736840767869,-604.61255545,9.323e-05,2]
[348872840,1736840767896,-154.622523,9.323e-05,2]
[348872841,1736840767923,-604.61255545,9.333e-05,2]
[348872842,1736840767950,-154.622523,9.333e-05,2]
[348872843,1736840767976,-604.61255545,9.343e-05,2]
[348872844,1736840768005,-154.622523,9.343e-05,2]
[348872845,1736840768032,-604.61255545,9.354e-05,2]
[348872846,1736840768058,-154.622523,9.354e-05,2]
[348872847,1736840768084,-604.61255545,9.364e-05,2]
[348872848,1736840768110,-154.622523,9.364e-05,2]
[348872849,1736840768138,-604.61255545,9.374e-05,2]
[348872850,1736840768164,-154.622523,9.374e-05,2]
[348872851,1736840768191,-604.61255545,9.384e-05,2]
[348872852,1736840768217,-154.622523,9.384e-05,2]
[348872853,1736840768247,-604.61255545,9.394e-05,2]
[348872854,1736840768274,-154.622523,9.394e-05,2]
[348872855,1736840768300,-604.61255545,9.404e-05,2]
[348872856,1736840768327,-154.622523,9.404e-05,2]
[348872857,1736840768353,-604.61255545,9.414e-05,2]
[348872858,1736840768382,-154.622523,9.414e-05,2]
[348872859,1736840768408,-604.61255545,9.424e-05,2]
[348872860,1736840768434,-154.622523,9.424e-05,2]
[348872861,1736840768461,-604.61255545,9.434e-05,2]
[348872862,1736840768488,-154.622523,9.434e-05,2]
[348872863,1736840768514,-604.61255545,9.444e-05,2]
[348872864,1736840768541,-154.622523,9.444e-05,2]
[348872865,1736840768567,-604.61255545,9.455e-05,2]
[348872866,1736840768595,-154.622523,9.455e-05,2]
[348872867,1736840768622,-604.61255545,9.465e-05,2]
[348872868,1736840768649,-154.622523,9.465e-05,2]
[348872869,1736840768676,-175.72,9.474e-05,2]
[348872870,1736840768704,-604.61255545,9.475e-05,2]
[348872871,1736840768730,-154.622523,9.475e-05,2]
[348872872,1736840768755,-150.0,9.479e-05,2]
[348872873,1736840768782,-604.61255545,9.485e-05,2]
[348872874,1736840768808,-154.622523,9.485e-05,2]
[348872875,1736840768835,-604.61255545,9.495e-05,2]
[348872876,1736840768864,-154.622523,9.495e-05,2]
[348872877,1736840768892,-156.177,9.5e-05,2]
[348872878,1736840768922,-604.61255545,9.505e-05,2]
[348872879,1736840768949,-154.622523,9.505e-05,2]
[348872880,1736840768976,-604.61255545,9.515e-05,2]
[348872881,1736840769009,-154.622523,9.515e-05,2]
[348872882,1736840769036,-604.61255545,9.525e-05,2]
[348872883,1736840769062,-154.622523,9.525e-05,2]
[348872884,1736840769089,-604.61255545,9.535e-05,2]
[348872885,1736840769115,-154.622523,9.535e-05,2]
[348872886,1736840769142,-604.61255545,9.545e-05,2]
[348872887,1736840769169,-604.61255545,9.556e-05,2]
[348872888,1736840769196,-604.61255545,9.566e-05,2]
[348872889,1736840769223,-604.61255545,9.576e-05,2]
[348872890,1736840769250,-604.61255545,9.586e-05,2]
[348872891,1736840769277,-604.61255545,9.596e-05,2]
[348872892,1736840769303,-604.61255545,9.606e-05,2]
[348872893,1736840769329,-604.61255545,9.616e-05,2]
[348872894,1736840769355,-604.61255545,9.626e-05,2]
[348872895,1736840769380,-604.61255545,9.636e-05,2]
[348872896,1736840769406,-604.61255545,9.646e-05,2]
[348872897,1736840769435,-604.61255545,9.657e-05,2]
[348872898,1736840769461,-604.61255545,9.667e-05,2]
[348872899,1736840769488,-604.61255545,9.677e-05,2]
[348872900,1736840769516,-604.61255545,9.687e-05,2]
[348872901,1736840769542,-604.61255545,9.697e-05,2]
[348872902,1736840769567,-604.61255545,9.707e-05,2]
[348872903,1736840769596,-604.61255545,9.717e-05,2]
[348872904,1736840769623,-604.61255545,9.727e-05,2]
[348872905,1736840769650,-604.61255545,9.737e-05,2]
[348872906,1736840769678,-604.61255545,9.747e-05,2]
[348872907,1736840769705,-604.61255545,9.758e-05,2]
[348872908,1736840769732,-604.61255545,9.768e-05,2]
[348872909,1736840769769,-604.61255545,9.778e-05,2]
[348872910,1736840769802,-604.61255545,9.788e-05,2]
[348872911,1736840769832,-604.61255545,9.798e-05,2]
[348872912,1736840769861,-1960.8105953,9.8e-05,2]
[348872913,1736840769890,-604.61255545,9.808e-05,2]
[348872914,1736840769919,-604.61255545,9.818e-05,2]
[348872915,1736840769947,-604.61255545,9.828e-05,2]
[348872916,1736840769977,-604.61255545,9.838e-05,2]
[348872917,1736840770009,-604.61255545,9.848e-05,2]
[348872918,1736840770036,-604.61255545,9.859e-05,2]
[348872919,1736840770064,-604.61255545,9.869e-05,2]
[348872920,1736840770091,-604.61255545,9.879e-05,2]
[348872921,1736840770118,-604.61255545,9.889e-05,2]
[348872922,1736840770145,-500.0,9.896e-05,2]
[348872923,1736840770174,-4132.95,9.896e-05,2]
[348872924,1736840770201,-2958.9243,9.896e-05,2]
[348872925,1736840770229,-604.61255545,9.899e-05,2]
[348872926,1736840770257,-4086.3468,9.9e-05,2]
[348872927,1736840770284,-604.61255545,9.909e-05,2]
[348872928,1736840770537,-604.61255545,9.919e-05,2]
[348872929,1736840770564,-604.61255545,9.929e-05,2]
[348872930,1736840770592,-604.61255545,9.939e-05,2]
[348872931,1736840770620,-203.7948504,9.942e-05,2]
[348872945,1736841032451,-150.0,9e-05,2]
[348872946,1736841032461,-150.0,9e-05,2]
[348872947,1736841032470,-174.0,9e-05,2]
[348872948,1736841032506,-150.88921112,9e-05,2]
[348872949,1736841032516,-150.0,9e-05,2]
[348872950,1736841032525,-150.0,9e-05,2]
[348872951,1736841032534,-150.0,9e-05,2]
[348872952,1736841032543,-150.0,9e-05,2]
[348872953,1736841032552,-150.0,9e-05,2]
[348872954,1736841032561,-150.0,9e-05,2]
[348872955,1736841032570,-150.0,9e-05,2]
[348872956,1736841032580,-150.0,9e-05,2]
[348872957,1736841032590,-324.88921112,9.01e-05,2]
[348872958,1736841032599,-324.88921112,9.02e-05,2]
[348872959,1736841032608,-150.0,9.025e-05,2]
[348872960,1736841032617,-324.88921112,9.03e-05,2]
[348872961,1736841032627,-324.88921112,9.04e-05,2]
[348872962,1736841032636,-150.0,9.05e-05,2]
[348872963,1736841032645,-324.88921112,9.051e-05,2]
[348872964,1736841032654,-324.88921112,9.061e-05,2]
[348872965,1736841032663,-324.88921112,9.071e-05,2]
[348872966,1736841032672,-150.0,9.075e-05,2]
[348872967,1736841032682,-324.88921112,9.081e-05,2]
[348872968,1736841032692,-324.88921112,9.091e-05,2]
[348872969,1736841032701,-150.0,9.1e-05,2]
[348872970,1736841032711,-324.88921112,9.101e-05,2]
[348872971,1736841032720,-324.88921112,9.111e-05,2]
[348872972,1736841032730,-324.88921112,9.121e-05,2]
[348872973,1736841032739,-150.0,9.125e-05,2]
[348872974,1736841032748,-324.88921112,9.131e-05,2]
[348872975,1736841032757,-324.88921112,9.141e-05,2]
[348872976,1736841032766,-150.0,9.15e-05,2]
[348872977,1736841032775,-324.88921112,9.152e-05,2]
[348872978,1736841032784,-324.88921112,9.162e-05,2]
[348872979,1736841032794,-150.0,9.167e-05,2]
[348872980,1736841032803,-324.88921112,9.172e-05,2]
[348872981,1736841032812,-150.0,9.172e-05,2]
[348872982,1736841032821,-150.0,9.175e-05,2]
[348872983,1736841032831,-324.88921112,9.182e-05,2]
[348872984,1736841032840,-324.88921112,9.192e-05,2]
[348872985,1736841032849,-150.0,9.2e-05,2]
[348872986,1736841032858,-150.0,9.2e-05,2]
[348872987,1736841032867,-150.0,9.2e-05,2]
[348872988,1736841032877,-324.88921112,9.202e-05,2]
[348872989,1736841032887,-324.88921112,9.212e-05,2]
[348872990,1736841032895,-24.80018317,9.222e-05,2]
[348872991,1736841032999,-300.08902795,9.222e-05,2]
[348872992,1736841033009,-150.0,9.225e-05,2]
[348872993,1736841033018,-324.88921112,9.232e-05,2]
[348872994,1736841033028,-324.88921112,9.242e-05,2]
[348872995,1736841033037,-150.0,9.25e-05,2]
[348872997,1736841033046,-324.88921112,9.253e-05,2]
[348872999,1736841033055,-324.88921112,9.263e-05,2]
[348873000,1736841033065,-324.88921112,9.273e-05,2]
[348873002,1736841033074,-150.0,9.275e-05,2]
[348873004,1736841033084,-324.88921112,9.283e-05,2]
[348873006,1736841033094,-324.88921112,9.293e-05,2]
[348873007,1736841033103,-150.0,9.3e-05,2]
[348873008,1736841033112,-324.88921112,9.303e-05,2]
[348873009,1736841033122,-324.88921112,9.313e-05,2]
[348873010,1736841033131,-324.88921112,9.323e-05,2]
[348873011,1736841033143,-150.0,9.325e-05,2]
[348873012,1736841033152,-150.0,9.333e-05,2]
[348873013,1736841033161,-150.0,9.333e-05,2]
[348873014,1736841033172,-324.88921112,9.333e-05,2]
[348873015,1736841033181,-150.0,9.333e-05,2]
[348873016,1736841033191,-324.88921112,9.343e-05,2]
[348873017,1736841033200,-150.0,9.35e-05,2]
[348873018,1736841033209,-324.88921112,9.354e-05,2]
[348873019,1736841033219,-324.88921112,9.364e-05,2]
[348873020,1736841033229,-324.88921112,9.374e-05,2]
[348873021,1736841033238,-150.0,9.375e-05,2]
[348873022,1736841033247,-324.88921112,9.384e-05,2]
[348873023,1736841033256,-324.88921112,9.394e-05,2]
[348873024,1736841033265,-150.0,9.4e-05,2]
[348873025,1736841033274,-150.0,9.4e-05,2]
[348873026,1736841033283,-150.0,9.4e-05,2]
[348873027,1736841033292,-324.88921112,9.404e-05,2]
[348873028,1736841033301,-324.88921112,9.414e-05,2]
[348873029,1736841033310,-324.88921112,9.424e-05,2]
[348873030,1736841033319,-150.0,9.425e-05,2]
[348873031,1736841033328,-324.88921112,9.434e-05,2]
[348873032,1736841033338,-324.88921112,9.444e-05,2]
[348873033,1736841033347,-150.0,9.45e-05,2]
[348873034,1736841033357,-324.88921112,9.455e-05,2]
[348873035,1736841033366,-324.88921112,9.465e-05,2]
[348873036,1736841033376,-324.88921112,9.475e-05,2]
[348873037,1736841033385,-150.0,9.475e-05,2]
[348873038,1736841033394,-324.88921112,9.485e-05,2]
[348873039,1736841033403,-324.88921112,9.495e-05,2]
[348873040,1736841033412,-150.0,9.5e-05,2]
[348873041,1736841033422,-150.0,9.5e-05,2]
[348873042,1736841033431,-150.0,9.5e-05,2]
[348873043,1736841033441,-324.88921112,9.505e-05,2]
[348873044,1736841033450,-324.88921112,9.515e-05,2]
[348873045,1736841033459,-150.0,9.525e-05,2]
[348873046,1736841033469,-324.88921112,9.525e-05,2]
[348873047,1736841033479,-324.88921112,9.535e-05,2]
[348873048,1736841033488,-154.622523,9.545e-05,2]
[348873049,1736841033497,-324.88921112,9.545e-05,2]
[348873050,1736841033507,-150.0,9.55e-05,2]
[348873051,1736841033516,-154.622523,9.556e-05,2]
[348873052,1736841033525,-324.88921112,9.556e-05,2]
[348873053,1736841033534,-154.622523,9.566e-05,2]
[348873054,1736841033543,-324.88921112,9.566e-05,2]
[348873055,1736841033552,-300.0,9.569e-05,2]
[348873056,1736841033562,-150.0,9.569e-05,2]
[348873057,1736841033572,-980.31,9.569e-05,2]
[348873058,1736841033581,-437.26,9.569e-05,2]
[348873059,1736841033591,-980.31,9.569e-05,2]
[348873060,1736841033600,-150.0,9.569e-05,2]
[348873061,1736841033610,-150.0,9.569e-05,2]
[348873062,1736841033621,-437.26,9.569e-05,2]
[348873063,1736841033630,-980.31,9.569e-05,2]
[348873064,1736841033640,-150.0,9.569e-05,2]
[348873065,1736841033649,-437.26,9.569e-05,2]
[348873066,1736841033658,-150.0,9.569e-05,2]
[348873067,1736841033668,-150.0,9.575e-05,2]
[348873068,1736841033678,-154.622523,9.576e-05,2]
[348873069,1736841033687,-324.88921112,9.576e-05,2]
[348873070,1736841033697,-150.0,9.578e-05,2]
[348873071,1736841033707,-152.29,9.578e-05,2]
[348873072,1736841033717,-300.0,9.578e-05,2]
[348873073,1736841033727,-150.0,9.578e-05,2]
[348873074,1736841033737,-873.42,9.578e-05,2]
[348873075,1736841033747,-150.0,9.578e-05,2]
[348873076,1736841033756,-248.86,9.578e-05,2]
[348873077,1736841033766,-980.31,9.58e-05,2]
[348873078,1736841033775,-154.622523,9.586e-05,2]
[348873079,1736841033784,-324.88921112,9.586e-05,2]
[348873080,1736841033794,-154.622523,9.596e-05,2]
[348873081,1736841033803,-324.88921112,9.596e-05,2]
[348873082,1736841033813,-150.0,9.6e-05,2]
[348873083,1736841033823,-150.0,9.6e-05,2]
[348873084,1736841033833,-150.0,9.6e-05,2]
[348873085,1736841033843,-154.622523,9.606e-05,2]
[348873086,1736841033852,-324.88921112,9.606e-05,2]
[348873087,1736841033861,-154.622523,9.616e-05,2]
[348873088,1736841033870,-324.88921112,9.616e-05,2]
[348873089,1736841033879,-150.0,9.625e-05,2]
[348873090,1736841033889,-154.622523,9.626e-05,2]
[348873091,1736841033898,-324.88921112,9.626e-05,2]
[348873092,1736841033907,-154.622523,9.636e-05,2]
[348873093,1736841033917,-324.88921112,9.636e-05,2]
[348873094,1736841033926,-154.622523,9.646e-05,2]
[348873095,1736841033935,-324.88921112,9.646e-05,2]
[348873096,1736841033944,-150.0,9.65e-05,2]
[348873097,1736841033954,-154.622523,9.657e-05,2]
[348873098,1736841033963,-324.88921112,9.657e-05,2]
[348873099,1736841033972,-154.622523,9.667e-05,2]
[348873100,1736841033981,-150.0,9.667e-05,2]
[348873101,1736841033991,-150.0,9.667e-05,2]
[348873102,1736841034000,-324.88921112,9.667e-05,2]
[348873103,1736841034009,-150.0,9.667e-05,2]
[348873104,1736841034019,-150.0,9.675e-05,2]
[348873105,1736841034028,-154.622523,9.677e-05,2]
[348873106,1736841034037,-7.43624125,9.677e-05,2]
[348873107,1736841034312,-317.45296987,9.677e-05,2]
[348873108,1736841034321,-112.79080565,9.687e-05,2]
[348873109,1736841034650,262.91,8.38e-05,2]
[348873110,1736841038488,-41.83171735,9.687e-05,2]
[348873111,1736841038497,-324.88921112,9.687e-05,2]
[348873112,1736841038507,-154.622523,9.697e-05,2]
[348873113,1736841038516,-324.88921112,9.697e-05,2]
[348873114,1736841038525,-150.0,9.7e-05,2]
[348873115,1736841038535,-154.622523,9.707e-05,2]
[348873116,1736841038543,-324.88921112,9.707e-05,2]
[348873117,1736841038552,-154.622523,9.717e-05,2]
[348873118,1736841038562,-324.88921112,9.717e-05,2]
[348873119,1736841038571,-150.0,9.725e-05,2]
[348873120,1736841038581,-154.622523,9.727e-05,2]
[348873121,1736841038590,-324.88921112,9.727e-05,2]
[348873122,1736841038599,-154.622523,9.737e-05,2]
[348873123,1736841038609,-324.88921112,9.737e-05,2]
[348873124,1736841038618,-154.622523,9.747e-05,2]
[348873125,1736841038627,-324.88921112,9.747e-05,2]
[348873126,1736841038636,-150.0,9.75e-05,2]
[348873127,1736841038646,-154.622523,9.758e-05,2]
[348873128,1736841038655,-324.88921112,9.758e-05,2]
[348873129,1736841038665,-154.622523,9.768e-05,2]
[348873130,1736841038675,-324.88921112,9.768e-05,2]
[348873131,1736841038687,-150.0,9.775e-05,2]
[348873132,1736841038700,-154.622523,9.778e-05,2]
[348873133,1736841038715,-324.88921112,9.778e-05,2]
[348873134,1736841038731,-154.622523,9.788e-05,2]
[348873135,1736841038743,-324.88921112,9.788e-05,2]
[348873136,1736841038755,-154.622523,9.798e-05,2]
[348873137,1736841038768,-324.88921112,9.798e-05,2]
[348873138,1736841038780,-980.4052977,9.8e-05,2]
[348873139,1736841038793,-150.0,9.8e-05,2]
[348873140,1736841038806,-150.0,9.8e-05,2]
[348873141,1736841038819,-150.0,9.8e-05,2]
[348873142,1736841038832,-154.622523,9.808e-05,2]
[348873143,1736841038844,-324.88921112,9.808e-05,2]
[348873144,1736841038854,-154.622523,9.818e-05,2]
[348873145,1736841038867,-324.88921112,9.818e-05,2]
[348873146,1736841038880,-150.0,9.825e-05,2]
[348873149,1736841038892,-154.622523,9.828e-05,2]
[348873151,1736841038905,-324.88921112,9.828e-05,2]
[348873153,1736841038918,-150.0,9.833e-05,2]
[348873156,1736841038931,-154.622523,9.838e-05,2]
[348873158,1736841038944,-324.88921112,9.838e-05,2]
[348873161,1736841038956,-154.622523,9.848e-05,2]
[348873163,1736841038970,-324.88921112,9.848e-05,2]
[348873166,1736841038984,-150.0,9.85e-05,2]
[348873168,1736841038996,-154.622523,9.859e-05,2]
[348873170,1736841039008,-324.88921112,9.859e-05,2]
[348873173,1736841039020,-154.622523,9.869e-05,2]
[348873175,1736841039033,-324.88921112,9.869e-05,2]
[348873177,1736841039045,-150.0,9.875e-05,2]
[348873180,1736841039057,-154.622523,9.879e-05,2]
[348873182,1736841039070,-324.88921112,9.879e-05,2]
[348873184,1736841039081,-154.622523,9.889e-05,2]
[348873186,1736841039092,-321.10249562,9.889e-05,2]
[348873187,1736841039105,-3.7867155,9.889e-05,2]
[348873188,1736841039116,-1000.0,9.896e-05,2]
[348873189,1736841039129,-154.622523,9.899e-05,2]
[348873190,1736841039146,-324.88921112,9.899e-05,2]
[348873191,1736841039158,-508.0,9.9e-05,2]
[348873192,1736841039167,-150.0,9.9e-05,2]
[348873193,1736841039179,-154.622523,9.909e-05,2]
[348873194,1736841039190,-324.88921112,9.909e-05,2]
[348873195,1736841039202,-154.622523,9.919e-05,2]
[348873196,1736841039216,-324.88921112,9.919e-05,2]
[348873197,1736841039229,-150.0,9.925e-05,2]
[348873198,1736841039239,-154.622523,9.929e-05,2]
[348873199,1736841039250,-324.88921112,9.929e-05,2]
[348873200,1736841039260,-154.622523,9.939e-05,2]
[348873201,1736841039275,-324.88921112,9.939e-05,2]
[348873202,1736841039286,-604.61255545,9.949e-05,2]
[348873203,1736841039298,-154.622523,9.949e-05,2]
[348873204,1736841039310,-324.88921112,9.949e-05,2]
[348873205,1736841039321,-150.0,9.95e-05,2]
[348873206,1736841039332,-604.61255545,9.96e-05,2]
[348873207,1736841039344,-154.622523,9.96e-05,2]
[348873208,1736841039355,-324.88921112,9.96e-05,2]
[348873209,1736841039367,-604.61255545,9.97e-05,2]
[348873210,1736841039378,-154.622523,9.97e-05,2]
[348873211,1736841039389,-324.88921112,9.97e-05,2]
[348873212,1736841039400,-150.0,9.975e-05,2]
[348873213,1736841039411,-604.61255545,9.98e-05,2]
[348873214,1736841039423,-154.622523,9.98e-05,2]
[348873215,1736841039434,-324.88921112,9.98e-05,2]
[348873216,1736841039444,-296.66632455,9.99e-05,2]
[348873220,1736841041847,-307.9462309,9.99e-05,2]
[348873221,1736841041856,-154.622523,9.99e-05,2]
[348873222,1736841041866,-324.88921112,9.99e-05,2]
[348873223,1736841041875,-530.35815447,9.99e-05,2]
[348873224,1736841042097,-1500.0,9.99e-05,2]
[348873240,1736841046625,-303.40512366,9.99e-05,2]
[348873254,1736841173773,80000.0,0.0002,30]
[348873255,1736841199805,50000.0,0.0002,30]
[348873256,1736841232147,329.26645126,0.00023,120]
[348873257,1736841376026,954.55,8.219e-05,2]
[348873258,1736841449937,3000.0,0.00023,120]
[348873348,1736841810820,150.0,0.00022526,120]
[348873350,1736842040098,1000.00840294,0.00023,120]
[348873353,1736842050785,150.0,0.00022401,120]
[348873360,1736842069710,4400.0,0.00023,120]
[348873367,1736842176113,1075.0,0.0002,30]
[348873371,1736842188775,1050.86960543,0.00023,120]
[348873377,1736842231754,-875.22278083,8.829e-05,2]
[348873378,1736842231889,-6099.62023516,8.829e-05,2]
[348873379,1736842232014,-2866.24698401,8.829e-05,2]
[348873380,1736842232025,-250.0,8.829e-05,2]
[348873381,1736842232035,-1144.94,8.866e-05,2]
[348873382,1736842232045,-2314.681,8.897e-05,2]
[348873383,1736842232055,-387.79,8.924e-05,2]
[348873384,1736842232065,-2628.08577507,8.924e-05,2]
[348873385,1736842232075,-209.56,8.924e-05,2]
[348873386,1736842232085,-250.0,8.972e-05,2]
[348873387,1736842232094,-1000.0,8.977e-05,2]
[348873388,1736842232103,-562.35,8.978e-05,2]
[348873389,1736842232113,-150.0,8.999e-05,2]
[348873390,1736842232123,-150.0,9e-05,2]
[348873391,1736842232133,-154.6225239,9e-05,2]
[348873392,1736842232142,-269.40126662,9e-05,2]
[348873393,1736842232152,-172.75673311,9e-05,2]
[348873394,1736842232161,-150.0,9e-05,2]
[348873395,1736842232171,-285.13312643,9e-05,2]
[348873396,1736842232180,-184.25968721,9e-05,2]
[348873397,1736842232189,-152.32240082,9e-05,2]
[348873398,1736842232199,-278.58358573,9e-05,2]
[348873399,1736842232207,-159.19737373,9e-05,2]
[348873400,1736842232216,-172.21160247,9e-05,2]
[348873401,1736842232225,-262.90072593,9e-05,2]
[348873402,1736842232234,-291.63212349,9e-05,2]
[348873403,1736842232243,-463.52,9.029e-05,2]
[348873404,1736842232252,-177.74,9.054e-05,2]
[348873405,1736842232261,-503.41,9.068e-05,2]
[348873406,1736842232271,-437.26,9.078e-05,2]
[348873407,1736842232280,-150.0,9.168e-05,2]
[348873408,1736842232289,-308.66,9.168e-05,2]
[348873409,1736842232298,-155.6,9.168e-05,2]
[348873410,1736842232307,-437.26,9.168e-05,2]
[348873411,1736842232316,-437.26,9.178e-05,2]
[348873412,1736842232326,-150.0,9.333e-05,2]
[348873413,1736842232335,-150.0,9.378e-05,2]
[348873414,1736842232352,-437.26,9.378e-05,2]
[348873415,1736842232363,-156.283,9.5e-05,2]
[348873416,1736842232372,-150.0,9.667e-05,2]
[348873417,1736842232381,-490.2026488,9.8e-05,2]
[348873418,1736842232390,-2935.6123,9.894e-05,2]
[348873419,1736842232399,-2036.4353,9.894e-05,2]
[348873420,1736842232408,-1366.4688,9.894e-05,2]
[348873421,1736842232418,-1819.9347,9.895e-05,2]
[348873422,1736842232428,-717.4464,9.896e-05,2]
[348873423,1736842232437,-255.0,9.899e-05,2]
[348873424,1736842232449,-410.66,9.9e-05,2]
[348873425,1736842232459,-151.0,9.95e-05,2]
[348873426,1736842232468,-151.0,9.95e-05,2]
[348873427,1736842232477,-203.108415,9.95e-05,2]
[348873429,1736842232487,-500.0,9.989e-05,2]
[348873431,1736842232496,-786.3,9.989e-05,2]
[348873433,1736842232505,-628.84,9.989e-05,2]
[348873435,1736842232514,-500.0,9.989e-05,2]
[348873437,1736842232523,-500.0,9.989e-05,2]
[348873439,1736842232532,-501.40623838,9.989e-05,2]
[348873441,1736842232541,-518.7,9.989e-05,2]
[348873443,1736842232552,-500.0,9.989e-05,2]
[348873445,1736842232564,-500.0,9.989e-05,2]
[348873447,1736842232574,-500.0,9.989e-05,2]
[348873449,1736842232583,-500.0,9.989e-05,2]
[348873451,1736842232592,-739.89,9.989e-05,2]
[348873453,1736842232603,-714.41,9.989e-05,2]